Cogmind - Beta 16.1 @@@ ROGUE MODE // 2026.04.03 @ 20:18:26 Player: KURIIRI Result: Destroyed by C-40 Crusher with Compactor Performance ------------- Evolutions (4) 2000 Regions Visited (5) 1000 Robots Destroyed (66) 330 Value Destroyed (2480) 2480 Prototype IDs (13) 260 Alien Tech Used (0) 0 Bonus (933) 933 TOTAL SCORE: 7003 Bonus ------- High Alert Combat Kills 51 Follower Combat Kills 163 Registered with UFD 300 Met Optimus in HQ 500 Friendly Fire -81 Cogmind --------- Core Integrity 0/850 Matter 222/300 Energy 99/100 System Corruption 10% Temperature Cool (0) Movement Core (50) Location -6/Waste Parts ------- > --- POWER (1) -------- (None) > --- PROPULSION (4) --- (None) > --- UTILITY (8) ------ Experimental Heat Sink Improved Signal Interpreter Makeshift Hacking Suite > --- WEAPON (2) ------- (None) > --- INVENTORY (5) ---- Gravmag System Improved Particle Charger Proton Cannon Heavy Proton Missile Launcher Katana Peak State ------------ > --- POWER ------------ Cold Fusion Reactor > --- PROPULSION ------- Heavy Siege Treads Carbon-fiber Leg Carbon-fiber Leg > --- UTILITY ---------- Advanced Heat Sink Experimental Heat Sink Experimental Heat Sink Large Storage Unit Improved Signal Interpreter Targeting Computer Makeshift Hacking Suite Improved System Shield > --- WEAPON ----------- Improved Matter Neutralizer Improved Matter Neutralizer > --- INVENTORY -------- Improved Carbon-fiber Leg Gravmag System Matter Compressor Improved Particle Charger Layered Light Armor Plating Improved System Restoration Module Heavy Tesla Rifle Proton Cannon Heavy Proton Missile Launcher Improved Plasma Cutter Multitool Katana [Rating: 82] Favorites ----------- Power Light Ion Engine Engine Light Ion Engine Power Core Light Nuclear Core Reactor Cold Fusion Reactor Propulsion Light Treads Treads Light Treads Leg Improved Aluminum Leg Utility Makeshift Hacking Suite Device Improved Sensor Array Storage Large Storage Unit Processor Targeting Computer Hackware Makeshift Hacking Suite Protection Hardened Medium Armor Plating Weapon Heavy Plasma Cannon Energy Gun Shock Rifle Energy Cannon Heavy Plasma Cannon Ballistic Gun Gauss Rifle Ballistic Cannon Light Cannon Launcher Heavy Proton Missile Launcher Special Weapon Multitool Impact Weapon Hammer Build | -11 -10 -10 -8 -6 -6 ------- Run | Yrd Mat Sub Scr Fac Was Slots Evolved 8 | . . . . 8 . Power . | . . . . . . Propulsion 2 | . . . . 2 . Utility 6 | . . . . 6 . Weapon . | . . . . . . Parts Attached 72 | 3 12 9 7 39 2 Power 6 | . 1 2 . 3 . Engine 2 | . 1 1 . . . Core 2 | . . 1 . 1 . Reactor 2 | . . . . 2 . Propulsion 15 | 2 1 . 2 9 1 Treads 6 | 2 1 . . 2 1 Leg 9 | . . . 2 7 . Wheel . | . . . . . . Hover . | . . . . . . Flight . | . . . . . . Utility 25 | 1 3 4 3 14 . Device 11 | 1 2 1 . 7 . Storage 3 | . 1 . 1 1 . Processor 2 | . . . . 2 . Hackware 4 | . . . 1 3 . Protection 5 | . . 3 1 1 . Artifact . | . . . . . . Weapon 26 | . 7 3 2 13 1 Energy Gun 7 | . 3 1 1 2 . Energy Cannon 9 | . 1 1 1 5 1 Ballistic Gun 4 | . 2 . . 2 . Ballistic Cannon 2 | . 1 . . 1 . Launcher 2 | . . . . 2 . Special Weapon 1 | . . . . 1 . Impact Weapon 1 | . . 1 . . . Slashing Weapon . | . . . . . . Piercing Weapon . | . . . . . . Special Melee Weapon . | . . . . . . Unidentified Prototypes 10 | . . 1 . 9 . Parts Lost 28 | . 5 1 . 14 8 Power 5 | . 1 1 . 2 1 Propulsion 7 | . 1 . . 4 2 Utility 9 | . 1 . . 5 3 Weapon 7 | . 2 . . 3 2 Highest Loss Streak 8 | . 2 1 . 4 8 To Critical Strikes 1 | . . . . . 1 Average Backups 7 | 6 5 5 5 11 10 Power . | 1 1 . . 1 . Propulsion 1 | 4 2 1 1 1 1 Utility 2 | . . 2 2 2 3 Weapon 2 | 1 2 1 . 4 3 Tool/Special . | . . . . . . Unused Backups 24 | . 4 5 . 6 9 Power 2 | . 1 . . 1 . Propulsion 7 | . . 4 . 1 2 Utility 7 | . 1 . . 2 4 Weapon 7 | . 2 1 . 2 2 Tool/Special 1 | . . . . . 1 Average Slot Usage (%) 93 | . 96 93 94 90 85 Engine 10 | . 12 12 14 1 . Reactor 1 | . . . . 3 5 Treads 16 | . 27 28 11 2 4 Leg 9 | . . . 16 20 13 Device 6 | . 13 7 1 7 18 Storage 6 | . 14 2 5 6 4 Processor 2 | . . . . 10 13 Hackware 6 | . . . 10 15 13 Protection 6 | . . 11 8 4 . Energy Gun 5 | . 8 . 11 . . Energy Cannon 10 | . 6 12 14 8 10 Ballistic Gun 1 | . 4 . . 2 . Ballistic Cannon 2 | . 8 4 . . . Impact Weapon 2 | . . 10 . . . Peak Build Rating 82 | 7 8 15 23 70 82 Average Rating 23 | 6 6 10 18 53 76 On Entrance 17 | 6 7 7 15 21 51 Avg Prop Armor Cover (%) 7 | . . . . 7 9 Naked Turns . | . . . . . . Heaviest Build 59 | 13 20 31 36 59 57 Greatest Support 70 | 40 46 40 40 69 70 Greatest Overweight (x) 3 | . . . 1 3 1 Average Overweight (x) . | . . . . . . Largest Inventory Capacity 15 | 8 10 10 15 15 15 Average Capacity 9 | 8 8 5 9 15 12 Most Carried 15 | 6 8 9 6 15 15 Average Carried 7 | 5 5 5 5 11 10 Final Capacity 15 | 8 10 5 15 15 5 Final Carried 15 | 4 7 5 6 15 5 Class Distribution -------------------- 74% | Mutant 21% | Hacker-Mutant 3% | Scavenger-Mutant Dominant Class ---------------- Mutant | -10/Materials Mutant | -10/Subcaves Mutant | -8/Scraptown Hacker-Mutant | -6/Factory Hacker-Mutant | -6/Waste Resources | -11 -10 -10 -8 -6 -6 ----------- Run | Yrd Mat Sub Scr Fac Was Matter Collected 2038 | 230 282 227 80 1219 . Remotely 189 | 30 159 . . . . Salvage Created 2591 | 84 745 194 . 1568 . Parts 135 | 4 42 18 . 71 . Haulers Intercepted 1 | . 1 . . . . Recyclers Shooed 1 | . 1 . . . . Parts Field Recycled . | . . . . . . Retrieved Matter . | . . . . . . Parts Self-Destructed 17 | . . 17 . . . Prevented . | . . . . . . Parts Restored . | . . . . . . Kills | -11 -10 -10 -8 -6 -6 ------- Run | Yrd Mat Sub Scr Fac Was Combat Hostiles Destroyed 57 | . 17 7 . 33 . Melee 2 | . . 2 . . . Guns 23 | . 14 . . 9 . Cannons 20 | . 3 5 . 12 . AOE 8 | . . . . 8 . Classes Destroyed 13 | 1 5 1 . 6 . Hauler 1 | . 1 . . . . Recycler 2 | 1 1 . . . . Mechanic 1 | . . . . 1 . Operator 2 | . 2 . . . . Watcher 3 | . 3 . . . . Swarmer 13 | . 6 3 . 4 . Grunt 28 | . 11 1 . 16 . Duelist 2 | . . . . 2 . Protector 1 | . . . . 1 . Sentry 3 | . . . . 3 . Specialist 3 | . . . . 3 . Programmer 4 | . . . . 4 . Subdweller 3 | . . 3 . . . Best Kill Streak 9 | 1 5 2 . 9 . Combat Bots Only 8 | . 4 2 . 8 . Max Kills in Single Turn 2 | 1 1 1 . 2 . Gunslinging . | . . . . . . Exploded 2 | . . . . 2 . Melee 1 | . . 1 . . . Uniques/NPCs Destroyed . | . . . . . . Combat | -11 -10 -10 -8 -6 -6 -------- Run | Yrd Mat Sub Scr Fac Was Hostile Shots Fired 484 | . 86 45 . 344 9 Missed 153 | . 12 16 . 125 . Hits 331 | . 74 29 . 219 9 Melee 19 | . . . . 10 9 Projectile 312 | . 74 29 . 209 . Critical Strikes 8 | . . . . 5 3 Damage Taken 5036 | . 709 400 . 3432 495 Core 1067 | . 123 58 . 731 155 Absorbed by Shields . | . . . . . . Regen/Repaired (Parts) 329 | . 114 . . 215 . Core Remaining (%) 63 | 100 . . 27 . . Volleys Fired 236 | 4 88 23 . 115 6 Largest 2 | 2 2 2 . 2 2 Hottest 226 | 80 100 90 . 226 226 Shots Fired 375 | 8 160 40 . 155 12 Gun 207 | 8 135 . . 64 . Cannon 154 | . 25 40 . 77 12 Launcher 14 | . . . . 14 . Special . | . . . . . . Kinetic 151 | . 72 17 . 62 . Thermal 143 | . 61 23 . 47 12 Explosive 10 | . . . . 10 . Electromagnetic 71 | 8 27 . . 36 . Robot Hit Streak 18 | 2 18 10 . 12 10 Robot Miss Streak 5 | 1 5 4 . 3 . Penetration Max . | . . . . . . Secondary Targets 4 | . 2 . . 2 . Max Gunslinging Chain 1 | . 1 . . 1 . Shots Hit Robots 245 | 5 106 29 . 95 10 Core Hits 113 | 1 39 10 . 62 1 Critical Kills 1 | . . . . 1 . Critical Parts Destroyed 1 | . . . . 1 . Critical Strikes 3 | . . 1 . 2 . Meltdown 1 | . . . . 1 . Destroy 1 | . . . . 1 . Blast 1 | . . 1 . . . Melee Attacks 41 | . . 41 . . . Impact 41 | . . 41 . . . Slashing . | . . . . . . Piercing . | . . . . . . Sneak Attacks . | . . . . . . Combat Hostiles . | . . . . . . Follow-up Attacks . | . . . . . . Damage Inflicted 7420 | 70 1359 525 . 5049 417 Guns 2076 | 70 1166 . . 840 . Cannons 2753 | . 186 437 . 1726 404 Explosions 2483 | . . . . 2483 . Melee 88 | . . 88 . . . Ramming 20 | . 7 . . . 13 Kinetic 1581 | . 610 151 . 820 . Thermal 2707 | . 504 286 . 1513 404 Explosive 1896 | . . . . 1896 . Electromagnetic 1128 | 70 238 . . 820 . Impact 88 | . . 88 . . . Slashing . | . . . . . . Piercing . | . . . . . . Highest Corruption 10 | . . . . 6 10 Average Corruption 3 | . . . . 3 6 Corruption Purged . | . . . . . . Corruption Blocked . | . . . . . . Effects 13 | . . . . 10 3 Message Errors 4 | . . . . 4 . Matter Fused 3 | . . . . 2 1 Heat Flow Errors 1 | . . . . . 1 Energy Discharges 4 | . . . . 3 1 Data Loss (minor) 1 | . . . . 1 . Overload Shots . | . . . . . . Overflow Damage 125 | . . . . 125 . Projectiles 74 | . . . . 74 . Explosions 51 | . . . . 51 . Melee . | . . . . . . Knockbacks 3 | . 2 1 . . . Impact . | . . . . . . Kinetic 3 | . 2 1 . . . Secondary . | . . . . . . Self-Inflicted Damage 13 | . . . . . 13 Shots . | . . . . . . Rammed 3 | . 3 . . . . Targets Rammed 3 | . 3 . . . . Kicked . | . . . . . . Crushed . | . . . . . . Highest Temperature 417 | 72 117 . . 417 163 Average Temperature 82 | 38 38 . . 119 114 Received Heat Transfer 912 | . 222 54 . 636 . Effects 1 | . . . . 1 . Short Circuit 1 | . . . . 1 . Siege Activations . | . . . . . . Martial Activations . | . . . . . . Shielding Activations . | . . . . . . Robots Disrupted . | . . . . . . Combat Hostiles . | . . . . . . Robots Corrupted 2 | . . . . 2 . Combat Hostiles 2 | . . . . 2 . Parts Fried 5 | . 1 . . 4 . Impact Corruptions . | . . . . . . Robots Melted 2 | . . . . 2 . Combat Hostiles 2 | . . . . 2 . Parts Melted 5 | . 1 1 . 3 . Heat Transferred 3721 | . 1230 555 . 1566 370 Parts Sabotaged 2 | . . . . 2 . Parts Stolen . | . . . . . . Parts Stripped . | . . . . . . Power Chain Reactions 2 | . . . . 2 . Alert | -11 -10 -10 -8 -6 -6 ------- Run | Yrd Mat Sub Scr Fac Was Maximum Alert Level 2 | . . . . 2 . Low Security (%) 91 | 100 100 . . 83 100 Level 1 4 | . . . . 9 . Level 2 3 | . . . . 7 . Level 3 . | . . . . . . Level 4 . | . . . . . . Level 5 . | . . . . . . High Security . | . . . . . . Max Security . | . . . . . . Peak Influence 513 | 5 181 . . 513 179 Initial 179 | . . . . . 179 Average 92 | 2 89 . . 92 154 Influence Increases 1837 | 5 575 167 . 1088 2 Destroy 0b10 Robot/C 1160 | . 340 120 . 700 . Destroy 0b10 Robot/NC 50 | 5 35 . . 10 . Destroy Leader 248 | . 108 20 . 120 . Allied During Kill 37 | . . 12 . 25 . Successful Hack 56 | . 16 . . 40 . Select Force Hacks 60 | . 60 . . . . Disable Machine 90 | . 15 . . 75 . Destroy Structure 46 | . 1 . . 43 2 Lose Combat Pursuer 90 | . . 15 . 75 . Influence Decreases 1786 | 5 526 216 . 575 464 Entered New Map 359 | . . 25 . . 334 Time Decay 1097 | 5 476 171 . 395 50 Lost Part 240 | . 50 . . 110 80 Lost Ally 90 | . . 20 . 70 . Squads Dispatched 16 | . 7 . . 9 . Investigation 8 | . 4 . . 4 . Extermination 2 | . . . . 2 . Reinforcement 4 | . 3 . . 1 . Assault 2 | . . . . 2 . Garrison . | . . . . . . Intercept . | . . . . . . Searches Triggered . | . . . . . . Construction Impeded . | . . . . . . Haulers Reinforced . | . . . . . . Active Scanning Responses . | . . . . . . Cargo Convoy Interrupts 1 | . . . . 1 . Stealth | -11 -10 -10 -8 -6 -6 --------- Run | Yrd Mat Sub Scr Fac Was Distress Signals 4 | . . . . 4 . Communications Jammed . | . . . . . . Distress Signals . | . . . . . . Times Spotted 102 | . 25 14 . 57 6 Peak Tracking Total 8 | . 5 3 . 8 6 Tactical Retreats 5 | . . 1 . 4 . Traps | -11 -10 -10 -8 -6 -6 ------- Run | Yrd Mat Sub Scr Fac Was Traps Triggered 3 | . 1 . . 2 . Indirectly 1 | . . . . 1 . Trap Hack Attempts . | . . . . . . Triggered . | . . . . . . Disarmed . | . . . . . . Reprogrammed . | . . . . . . Reused . | . . . . . . Traps Extracted . | . . . . . . Installed . | . . . . . . Triggered . | . . . . . . Machines | -11 -10 -10 -8 -6 -6 ---------- Run | Yrd Mat Sub Scr Fac Was Machines Disabled 6 | . 1 . . 5 . Max in Single Turn 2 | . 1 . . 2 . Garrison Access 2 | . . . . 2 . Machines Repaired . | . . . . . . Machines Dismantled . | . . . . . . Machines Sabotaged . | . . . . . . Overloaded Fab Kills . | . . . . . . Hacking | -11 -10 -10 -8 -6 -6 --------- Run | Yrd Mat Sub Scr Fac Was Machines Accessed 26 | . 8 . 6 12 . Terminals 10 | . 5 . . 5 . Fabricators 1 | . . . . 1 . Repair Stations 2 | . 1 . . 1 . Recycling Units 5 | . 2 . . 3 . Scanalyzers 1 | . . . . 1 . Garrison Access 1 | . . . . 1 . Total Hacks 79 | . 21 . 20 38 . Successful 57 | . 12 . 20 25 . Failed 21 | . 9 . . 12 . Catastrophic 1 | . 1 . . . . Database Lockouts 1 | . . . . 1 . Manual 37 | . 18 . . 19 . Terminals 33 | . 17 . . 16 . Fabricators 3 | . . . . 3 . Repair Stations 7 | . 2 . . 5 . Recycling Units 11 | . 2 . . 9 . Scanalyzers 4 | . . . . 4 . Garrison Access 1 | . . . . 1 . Terminal Hacks 24 | . 1 . 20 3 . Record 15 | . . . 15 . . Robot Analysis 6 | . . . 5 1 . Prototype ID Bank 1 | . . . . 1 . Terminal Index 1 | . . . . 1 . Locate Traps 1 | . 1 . . . . Fabricator Hacks 2 | . . . . 2 . Network Status 1 | . . . . 1 . Build 1 | . . . . 1 . Repair Station Hacks 6 | . 2 . . 4 . Scan Component 3 | . 1 . . 2 . Repair 3 | . 1 . . 2 . Recycling Unit Hacks 2 | . . . . 2 . Retrieve Components 2 | . . . . 2 . Scanalyzer 1 | . . . . 1 . Retrieve Study 1 | . . . . 1 . Garrison Access Hacks 1 | . . . . 1 . Seal Access 1 | . . . . 1 . Unauthorized Hacks 21 | . 9 . . 12 . Terminals 16 | . 7 . . 9 . Assimilate 2 | . . . . 2 . Botnet 5 | . 2 . . 3 . Operators 1 | . . . . 1 . Skim 8 | . 5 . . 3 . Fabricators 1 | . . . . 1 . Report 1 | . . . . 1 . Repair Stations . | . . . . . . Recycling Units 4 | . 2 . . 2 . Tunnel 2 | . 2 . . . . Fedlink 2 | . . . . 2 . Scanalyzers . | . . . . . . Garrison Access . | . . . . . . Data Cores Recovered . | . . . . . . Used . | . . . . . . Hacking Detections 13 | . 5 . . 8 . Full Trace Events 3 | . 2 . . 1 . Feedback Events . | . . . . . . Feedback Blocked . | . . . . . . Robot Schematics Acquired . | . . . . . . Robots Built . | . . . . . . Authchips . | . . . . . . Time . | . . . . . . Total Robot Build Rating . | . . . . . . Part Schematics Acquired . | . . . . . . Parts Built 2 | . . . . 2 . Authchips . | . . . . . . Time 106 | . . . . 106 . Total Part Build Rating 12 | . . . . 12 . Part Studies Acquired 1 | . . . . 1 . Parts Repaired 3 | . 1 . . 2 . Time 57 | . 13 . . 44 . Parts Recycled . | . . . . . . Recycled Matter . | . . . . . . Retrieved Matter . | . . . . . . Retrieved Components 2 | . . . . 2 . Parts Scanalyzed . | . . . . . . Part Schematics Acquired . | . . . . . . Parts Damaged . | . . . . . . Bothacking | -11 -10 -10 -8 -6 -6 ------------ Run | Yrd Mat Sub Scr Fac Was Used RIF Installer . | . . . . . . Robots Hacked . | . . . . . . Non-combat . | . . . . . . Combat . | . . . . . . Robot Hacks Applied . | . . . . . . Relay Couplers Released 2 | . . . . 2 . Machine Destruction 2 | . . . . 2 . Fabnet Peak Effective % . | . . . . . . Robots Rewired . | . . . . . . Allies Hacked . | . . . . . . Hacks Repelled . | . . . . . . Allies | -11 -10 -10 -8 -6 -6 -------- Run | Yrd Mat Sub Scr Fac Was Total Allies 8 | . . 6 . 2 . Largest Group 5 | . . 5 5 5 . Highest-Rated Group 102 | . . 95 95 102 . Highest-Rated Ally 26 | . . 19 19 26 . Initial UFD Resources 38 | . . . . 24 38 Total Orders 2 | . . . . 2 . STAY 1 | . . . . 1 . FOLLOW 1 | . . . . 1 . Ally Attacks 48 | . . 15 . 33 . Total Damage 671 | . . 225 . 446 . Kills 6 | . . 2 . 4 . Allies Corrupted . | . . . . . . Allies Melted . | . . . . . . Intel | -11 -10 -10 -8 -6 -6 ------- Run | Yrd Mat Sub Scr Fac Was Active Infowar (turns) 2180 | . 565 375 . 1240 . Sensors 2177 | . 565 375 . 1237 . Jamming 277 | . . . . 277 . Robot Analysis Total 6 | . . . 5 1 . Derelict Logs Recovered 3 | . . 1 2 . . Drone Launches . | . . . . . . Drone Recoveries . | . . . . . . Exploration | -11 -10 -10 -8 -6 -6 ------------- Run | Yrd Mat Sub Scr Fac Was Turns Passed 7102 | 28 1279 1964 1996 1728 107 Spaces Moved 3773 | 10 560 1056 1189 917 41 Core 5 | . . . . . 5 Treads 2251 | 1 560 1056 499 105 30 Legs 1517 | 9 . . 690 812 6 Wheels . | . . . . . . Hover . | . . . . . . Flight . | . . . . . . Fastest Speed 50 | 120 160 160 130 115 50 Average Speed 155 | 124 160 160 166 131 165 Slowest Speed 330 | 160 160 160 200 330 190 Overloaded Moves . | . . . . . . Propulsion Burnouts . | . . . . . . Robots Hopped . | . . . . . . Potential Cave-ins . | . . . . . . Cave-ins Triggered . | . . . . . . Exploration Rate (%) 50 | 2 93 60 87 25 36 Regions Visited 5 Branch Regions 2 Pre-discovered Areas 6 | . 2 2 1 1 . Known Exits Taken . | . . . . . . Unknown Exits Taken 4 | 1 1 1 1 . . Scrap Searched 6 | . . 4 2 . . Spaces Dug 15 | . . 10 . 3 2 Terrain Destroyed 56 | . . 11 . 43 2 Melee 10 | . . 10 . . . Projectile 18 | . . 1 . 15 2 AOE 28 | . . . . 28 . Terrain Rammed 3 | . . . . . 3 Walls Destroyed . | . . . . . . Machines Disabled . | . . . . . . Actions | -11 -10 -10 -8 -6 -6 --------- Run | Yrd Mat Sub Scr Fac Was Total 4562 | 18 778 1222 1204 1279 61 Wait 319 | . 103 71 4 135 6 Move 3769 | 9 559 1055 1188 917 41 Hop . | . . . . . . Pick Up 49 | . 6 10 2 31 . Fast Attach 41 | 1 6 4 4 25 1 Attach 25 | 2 1 3 1 15 3 Detach 4 | . . . . 4 . Swap 23 | . 6 3 2 12 . Drop 47 | 2 6 12 3 23 1 Fire 236 | 4 88 23 . 115 6 Melee 41 | . . 41 . . . Ram 3 | . . . . . 3 Kick . | . . . . . . Crush 3 | . 3 . . . . Escape Stasis . | . . . . . . Rewire . | . . . . . . Trap . | . . . . . . Miscellaneous 2 | . . . . 2 . Route ------- -11/Scrapyard -10/Materials (discovered 6 exits: [*Mat x3] / [*Min x2] / [*Sub]) -10/Subcaves (discovered 2 exits: [*Mat] / *Scr) -8/Scraptown (discovered 2 exits: *Fac x2) -6/Factory -6/Waste History --------- Turn | Location | Event 13 | -11/Scrapyard | Discovered new exit (range 3) 29 | -11/Scrapyard | Entered Materials 226 | -10/Materials | Discovered new exit (range 5) 316 | -10/Materials | Build established: Mutant 436 | -10/Materials | Discovered new exit (range 8) 690 | -10/Materials | Discovered new exit (range 12) 784 | -10/Materials | Repaired Lgt. Treads 841 | -10/Materials | Discovered new exit (range 16) 1091 | -10/Materials | Discovered new exit (range 13) 1295 | -10/Materials | Discovered new exit (range 7) 1308 | -10/Materials | Entered Subcaves 1309 | -10/Subcaves | Approached by a straggling Scientist 1346 | -10/Subcaves | Curiously followed by a Cobbler waking with a query about "LVR3C" 1543 | -10/Subcaves | Learned location of Zion (-6) 1543 | -10/Subcaves | Met a Zionite searching for "candidates" 1668 | -10/Subcaves | Core integrity fell below 50% 2109 | -10/Subcaves | Discovered new exit (range 8) 2151 | -10/Subcaves | Shifting Twisted Machinery released Shrapnel Trap 2164 | -10/Subcaves | Shifting Twisted Machinery released Battle Rifle 2192 | -10/Subcaves | Scientist uncovered a shortcut to Scraptown 2325 | -10/Subcaves | Ambushed by Subdweller buried in earth 2539 | -10/Subcaves | Visited triangular shrine 2550 | -10/Subcaves | Found Prototype Device 2550 | -10/Subcaves | Identified V3-11A's Pendant 2555 | -10/Subcaves | Befriended Subdweller 2715 | -10/Subcaves | Befriended Subdweller 2715 | -10/Subcaves | Befriended Subdweller 2750 | -10/Subcaves | Befriended Subdweller 2755 | -10/Subcaves | Befriended Subdweller 2910 | -10/Subcaves | Befriended Subdweller 3272 | -10/Subcaves | Entered Scraptown 3272 | -8/Scraptown | Accompanied by 5 allies 3411 | -8/Scraptown | Delivered V3-11A's Pendant to T0-NE2 in exchange for information 3505 | -8/Scraptown | Visited UFD Registry 3505 | -8/Scraptown | Registered with UFD as "Datapod" 3528 | -8/Scraptown | Visited SPCMW 3577 | -8/Scraptown | Heard Great Nut preacher, LISTEN AND RECITE! 3601 | -8/Scraptown | Scanned Subdweller tech in exchange for log data 3608 | -8/Scraptown | Learned location of Warlord (-5) 3652 | -8/Scraptown | Guru changed UFD alias to "Steamroller" 3681 | -8/Scraptown | Discovered new exit (range 11) 3908 | -8/Scraptown | Visited The Evicted 3943 | -8/Scraptown | Visited Science Testing Area 4152 | -8/Scraptown | Visited Cyclists 4161 | -8/Scraptown | Entered Cyclist Reading Room 4190 | -8/Scraptown | Visited Cave Peace 4198 | -8/Scraptown | Visited Spacefarers 4306 | -8/Scraptown | Visited Science Guys 4324 | -8/Scraptown | Visited Sword Containment 4554 | -8/Scraptown | Visited LU-1G1's Boring Crew 4580 | -8/Scraptown | Visited Scrap Suit Storage 4606 | -8/Scraptown | Visited Derelict Rescue Squad 4662 | -8/Scraptown | Visited Analyses Database 4710 | -8/Scraptown | Visited A0-MCA Data Center 4722 | -8/Scraptown | Given a C- rating by A0-MCA 4762 | -8/Scraptown | Visited Curators Association 4862 | -8/Scraptown | Visited Modified Component R&D 5148 | -8/Scraptown | Met Optimus 5148 | -8/Scraptown | Accepted into 0bPrime 5256 | -8/Scraptown | Discovered new exit (range 5) 5268 | -8/Scraptown | Entered Factory 5268 | -6/Factory | Accompanied by 5 allies 5268 | -6/Factory | Evolved 8 slots: Propulsion x2, Utility x6 5628 | -6/Factory | Build established: Hacker-Mutant 5654 | -6/Factory | Central database locked down 5694 | -6/Factory | Loaded intel: 8 recycling unit locations 5713 | -6/Factory | Learned location of Protoforge (-2) 6033 | -6/Factory | Fabricated Imp. Plasma Cutter (x2) 6125 | -6/Factory | Discovered new exit (range 9) 6134 | -6/Factory | Identified exit to Factory 6302 | -6/Factory | Repaired Flexi-carbon Leg+ 6302 | -6/Factory | Cargo convoy interrupted 6323 | -6/Factory | Repaired Carbon-fiber Leg 6428 | -6/Factory | Lost 4 parts (1n1u2w) 6673 | -6/Factory | Found Prototype Launcher 6673 | -6/Factory | Identified Mni. Smartbomb Launcher 6727 | -6/Factory | Core integrity fell below 50% 6746 | -6/Factory | Lost 3 parts (1p1n1u) 6761 | -6/Factory | Destroyed 8 combat bots 6960 | -6/Factory | Core integrity fell below 20% 6996 | -6/Factory | Manually triggered Chute Trap 6996 | -6/Factory | Sucked down chute 6996 | -6/Factory | Entered Waste 7025 | -6/Waste | Spotted C-40 Crusher 7033 | -6/Waste | Spotted C-40 Crusher 7038 | -6/Waste | Spotted C-40 Crusher 7062 | -6/Waste | Spotted C-40 Crusher 7071 | -6/Waste | Crushed by Compactor (0 parts destroyed, 1 dropped) 7076 | -6/Waste | Spotted C-40 Crusher 7078 | -6/Waste | Spotted C-40 Crusher 7094 | -6/Waste | Crushed by Compactor (1 part destroyed, 1 dropped) 7095 | -6/Waste | Crushed by Compactor (1 part destroyed) 7097 | -6/Waste | Crushed by Compactor (1 part destroyed) 7100 | -6/Waste | Crushed by Compactor (1 part destroyed) 7101 | -6/Waste | System corruption reached 10% 7103 | -6/Waste | Crushed by Compactor (1 part destroyed, 1 dropped) 7103 | -6/Waste | Destroyed by C-40 Crusher with Compactor Last Messages --------------- 07097_ Slammed into Wall. 07097_ Destabilizing: Core damaged (-17). 07097_ Destabilizing: System interference. 07097_ Imp. Signal Interpreter temporarily disabled. 07097_ Adv. Heat Sink temporarily disabled. 07098_ Cold Fusion Reactor destroyed. 07100_ Slammed into Wall. 07100_ Imp. System Shield destroyed. 07100_ System corrupted by crushing effect (+4). 07100_ Destabilizing: System interference. 07100_ Exp. Heat Sink temporarily disabled. 07100_ Targeting Computer temporarily disabled. 07100_ Exp. Heat Sink temporarily disabled. 07100_ Destabilizing: Core damaged (-34). 07100_ Adv. Heat Sink crushed. 07101_ Critical hit (Destroy). 07101_ Broken Hvy. Siege Treads destroyed. 07103_ Exp. Heat Sink crushed. 07103_ Targeting Computer crushed. Map ----- +----------------------------------------------------+ | ?????????????????????????????????????????????????? | | ?????????????????????????????????????????????????? | | ?????????????????????????????????????????????????? | | ?????????????????????????????????????????????????? | | ?????????????????????????????????????????????????? | | ?????????????????????????????????????????????????? | | ?????????????????????????????????????????????????? | | ?????????? ??????????????????????????????????????? | | ????????? ???????????????????????????????????????? | | ???????? ??????? ?????????????????????????????? | | ???? #??????# #????????????????????????????? | | #??# #??????# #????????????????????????????? | | #??# #??????# #????????????????????????????? | | #??# #??????# #????????????????????????????? | | #### ######## #####????????????????????????? | | ????????? ?????????????? | | ????????? ??????????????? | | ????????? ???????????????? | | ?????????? ????????????????? | | #### #??????# #????????? #????????????????? | | #??# #??????# #???????? #????????????????? | | ##?# #??????# #???????? #????????????????? | | "### #??????#C #??????? #????????????????? | | #"## ########CC ######## #????????????????? | | ## CC #????????????????? | | ?# CC CC@ #????????????????? | | ?# CC CC #????????????????? | | ?# CC = #????????????????? | | ?### ######## CC######## #????????????????? | | ???# #??????# #??????? #????????????????? | | ???# #??????# #???????? #????????????????? | | ???# #??????# #????????? #????????????????? | | ???# #??????# #?????????? #????????????????? | | ???######?????? ??????????? ????????????????? | | ?????????????? ??????????? ???????????????? | | ?????????????# #?????????? #??????????????? | | ?????????????# #???????????#??????????????? | | ?????????????# #??????????????????????????? | | ?????????????# #??????????????????????????? | | ?????????????# ????????????????????????????? | | ???????????????? ????????????????????????????? | | ?????????????????????????????????????????????????? | | ?????????????????????????????????????????????????? | | ?????????????????????????????????????????????????? | | ?????????????????????????????????????????????????? | | ?????????????????????????????????????????????????? | | ?????????????????????????????????????????????????? | | ?????????????????????????????????????????????????? | | ?????????????????????????????????????????????????? | | ?????????????????????????????????????????????????? | +----------------------------------------------------+ Best States ------------- Heat Dissipation 108 Energy Generation 18 Energy Capacity 200 Matter Stores 300 Matter Capacity 800 Sight Range 16 Robot Scan Range 15 Terrain Scan Density 10 Jamming Range 12 Additional Mass Support 6 Armor Coverage 800 Resistance: TH 20 Propulsion Shielding 33 Evasion (%) 55 Targeting Accuracy 5 Recoil Reduction 2 Particle Charging 20 Offensive Hacking 21 Defensive Hacking 12 Item Schematics ----------------- None Robot Schematics ------------------ None Fabricated ------------ Imp. Plasma Cutter | x2 | -6/Factory | Preloaded Repaired ---------- Lgt. Treads | 18% | -10/Materials Flexi-carbon Leg | 16% | -6/Factory Carbon-fiber Leg | 7% | -6/Factory Studied --------- Flexi-carbon Leg | -6/Factory | Hacked Alien Tech Used ----------------- None Achievements -------------- None Challenges ------------ None Game ------ Seed BiometalNeutrinoDesublimator Manual? 0 Play Time 00:48:41 Cumulative 382.7 hours Start 2026.04.03 @ 13:46:24 End 2026.04.03 @ 20:18:26 Sessions 3 Manual Loads 0 Difficulty Rogue Special Mode None Game No. 314 Rogue 278 Adventurer 36 Explorer 0 Win Type - Total 5 Types 2/0/0/1/0/0/0/2/0/0 Lore% 72 Gallery% 66 Achievement% 54 Wizard Run 0 Options --------- Layout 1 ASCII 0 Keyboard 0 Movement Numpad Keybinds 0 Fullscreen 1 Font 48/Smallcaps Map View 50x35 Zoom Use 0% Tactical HUD 1 Map Filters NONE Filters NONE Steam 1 RUN: 6002a56d-e2b7-4563-bd55-d4c19d616108